fUSD/lending_fUSD_20240701
["ID","MTS","AMOUNT","RATE_DAILY","PERIOD"]
[330799416,1719801055954,-460.94692563,0.00022,4]
[330799417,1719801055963,-152.71441522,0.00022006,2]
[330799418,1719801055973,-152.28709695,0.00022009,2]
[330799419,1719801055983,-150.0,0.00022015,2]
[330799420,1719801055993,-500.0,0.00022022,4]
[330799421,1719801056003,-275.08660181,0.00022022,4]
[330799422,1719801056013,-513.46676005,0.00022022,4]
[330799423,1719801056023,-18635.62955299,0.00022023,2]
[330799424,1719801056032,-1500.0,0.00022024,2]
[330799425,1719801056042,-150.0,0.00022025,2]
[330799426,1719801056052,-150.0,0.00022027,2]
[330799427,1719801056062,-1516.6293214,0.00022033,2]
[330799428,1719801056072,-150.45691153,0.00022038,2]
[330799429,1719801056082,-686.18155533,0.00022038,2]
[330799430,1719801056092,-1030.77067851,0.0002205,2]
[330799431,1719801056249,-152.75625898,0.00022058,2]
[330799432,1719801056259,-150.0,0.00022067,2]
[330799433,1719801056269,-150.0,0.00022071,2]
[330799434,1719801056278,-18635.62955299,0.00022077,2]
[330799435,1719801056287,-150.0,0.0002208,2]
[330799436,1719801056296,-1500.0,0.00022086,2]
[330799437,1719801056306,-300.0,0.00022088,2]
[330799438,1719801056316,-607.03042135,0.00022109,2]
[330799439,1719801056326,-217.65245577,0.00022109,2]
[330799440,1719801056335,-151.36189748,0.00022109,2]
[330799441,1719801056346,-1500.0,0.00022129,2]
[330799442,1719801056355,-18635.62955299,0.0002213,2]
[330799443,1719801056365,-634.58184927,0.00022139,2]
[330799444,1719801056374,-755.71,0.00022143,4]
[330799445,1719801056384,-500.0,0.00022143,4]
[330799446,1719801056394,-500.0,0.00022143,4]
[330799447,1719801056403,-500.0,0.00022143,4]
[330799448,1719801056414,-500.0,0.00022143,4]
[330799449,1719801056424,-165.46708011,0.00022158,2]
[330799450,1719801056434,-229.93,0.0002216,30]
[330799451,1719801056444,-150.5,0.0002216,30]
[330799452,1719801056453,-154.05,0.0002216,30]
[330799453,1719801056462,-817.62401968,0.00022163,2]
[330799454,1719801056472,-150.0,0.00022164,2]
[330799455,1719801056481,-150.0,0.00022164,2]
[330799456,1719801056490,-150.0,0.00022164,2]
[330799457,1719801056499,-150.0,0.00022164,2]
[330799458,1719801056508,-150.0,0.00022164,2]
[330799459,1719801056517,-150.0,0.00022164,2]
[330799460,1719801056526,-150.0,0.00022164,2]
[330799461,1719801056535,-150.0,0.00022164,2]
[330799462,1719801056544,-150.0,0.00022164,2]
[330799463,1719801056553,-150.0,0.00022164,2]
[330799464,1719801056562,-150.0,0.00022164,2]
[330799465,1719801056571,-150.0,0.00022164,2]
[330799466,1719801056580,-150.0,0.00022164,2]
[330799467,1719801056590,-150.0,0.00022164,2]
[330799468,1719801056601,-150.0,0.00022164,2]
[330799469,1719801056610,-150.0,0.00022164,2]
[330799470,1719801056619,-150.0,0.00022164,2]
[330799471,1719801056629,-150.0,0.00022164,2]
[330799472,1719801056638,-150.0,0.00022164,2]
[330799473,1719801056647,-150.0,0.00022164,2]
[330799474,1719801056656,-150.5,0.0002217,30]
[330799475,1719801056670,-150.5,0.0002217,30]
[330799476,1719801056679,-150.5,0.0002217,30]
[330799477,1719801056688,-166.66666668,0.00022175,2]
[330799478,1719801056697,-150.5,0.0002218,30]
[330799479,1719801056707,-150.5,0.0002218,30]
[330799480,1719801056717,-150.5,0.0002218,30]
[330799481,1719801056726,-18635.62955299,0.00022184,2]
[330799482,1719801056736,-151.0,0.00022192,2]
[330799483,1719801056750,-150.0,0.00022192,2]
[330799484,1719801056762,-170.92853389,0.00022192,2]
[330799485,1719801056773,-154.83472858,0.00022192,2]
[330799486,1719801056782,-150.0,0.00022199,2]
[330799487,1719801056792,-306.97338362,0.00022199,2]
[330799488,1719801056802,-312.02373182,0.00022199,2]
[330799489,1719801056811,-150.0,0.00022206,2]
[330799490,1719801056821,-150.0,0.00022208,2]
[330799491,1719801056831,-305.26968278,0.00022211,2]
[330799492,1719801056840,-383.37028258,0.00022214,2]
[330799493,1719801056850,-157.02821603,0.00022222,3]
[330799494,1719801056859,-686.18155533,0.00022231,2]
[330799495,1719801056869,-1500.0,0.00022236,2]
[330799496,1719801056878,-18635.62955299,0.00022238,2]
[330799497,1719801056887,-150.0,0.00022254,2]
[330799498,1719801056896,-686.18155533,0.00022256,2]
[330799499,1719801056906,-295.0,0.0002227,30]
[330799500,1719801056915,-383.37028258,0.0002227,2]
[330799501,1719801056924,-174.524,0.00022275,2]
[330799502,1719801056933,-174.524,0.00022275,2]
[330799503,1719801056942,-174.524,0.00022275,2]
[330799504,1719801056952,-174.524,0.00022275,2]
[330799505,1719801056961,-174.524,0.00022275,2]
[330799506,1719801056970,-295.0,0.0002228,30]
[330799507,1719801056979,-295.0,0.0002228,30]
[330799508,1719801056990,-295.0,0.0002229,30]
[330799509,1719801056999,-295.0,0.0002229,30]
[330799510,1719801057008,-262.0813952,0.0002229,2]
[330799511,1719801057017,-18635.62955299,0.00022292,2]
[330799512,1719801057027,-924.0,0.000223,2]
[330799513,1719801057037,-150.0,0.00022307,2]
[330799514,1719801057046,-153.4125173,0.00022318,2]
[330799515,1719801057055,-195.89847219,0.00022318,2]
[330799516,1719801057065,-1500.0,0.00022324,2]
[330799517,1719801057074,-156.4032567,0.00022325,2]
[330799518,1719801057083,-262.0813952,0.00022327,2]
[330799519,1719801057092,-150.0,0.00022329,2]
[330799520,1719801057104,-156.44755965,0.00022335,2]
[330799521,1719801057114,-154.83472858,0.00022335,2]
[330799522,1719801057123,-164.91172843,0.00022336,2]
[330799523,1719801057133,-300.0,0.0002234,2]
[330799524,1719801057142,-2000.0,0.00022345,2]
[330799525,1719801057151,-1942985.20546858,0.00022346,7]
[330799526,1719801057161,-18635.62955299,0.00022346,2]
[330799527,1719801057170,-154.94398225,0.00022348,2]
[330799528,1719801057179,-151.43128215,0.00022353,2]
[330799529,1719801057188,-150.5,0.0002236,30]
[330799530,1719801057197,-500.0,0.00022361,4]
[330799531,1719801057207,-150.0,0.00022362,2]
[330799532,1719801057216,-150.5,0.0002237,30]
[330799533,1719801057226,-1500.0,0.00022379,2]
[330799534,1719801057235,-303.0,0.0002238,30]
[330799535,1719801057244,-150.5,0.0002238,30]
[330799536,1719801057253,-150.0,0.00022382,2]
[330799537,1719801057263,-295.0,0.0002239,30]
[330799538,1719801057272,-213.78600697,0.00022399,4]
[330799539,1719801057280,-491.58655527,0.00022399,4]
[330799540,1719801057290,-500.0,0.00022399,4]
[330799541,1719801057299,-462.39769051,0.00022399,4]
[330799542,1719801057308,-610.38874185,0.00022399,4]
[330799543,1719801057318,-640.2,0.00022399,4]
[330799544,1719801057327,-640.2,0.00022399,4]
[330799545,1719801057337,-640.2,0.00022399,4]
[330799546,1719801057347,-640.2,0.00022399,4]
[330799547,1719801057357,-640.2,0.00022399,4]
[330799548,1719801057366,-500.0,0.00022399,4]
[330799549,1719801057375,-2819.67,0.00022399,4]
[330799550,1719801057385,-2819.67,0.00022399,4]
[330799551,1719801057394,-2819.67,0.00022399,4]
[330799552,1719801057407,-2819.67,0.00022399,4]
[330799553,1719801057416,-2819.67,0.00022399,4]
[330799554,1719801057426,-500.0,0.00022399,4]
[330799555,1719801057438,-500.0,0.00022399,4]
[330799556,1719801057448,-500.0,0.00022399,4]
[330799557,1719801057457,-500.0,0.00022399,4]
[330799558,1719801057467,-257.0,0.000224,2]
[330799559,1719801057477,-515.0,0.000224,2]
[330799560,1719801057486,-491.0,0.000224,5]
[330799561,1719801057496,-2000.0,0.000224,2]
[330799562,1719801057506,-2000.0,0.000224,2]
[330799563,1719801057516,-2000.0,0.000224,2]
[330799564,1719801057525,-2000.0,0.000224,2]
[330799565,1719801057535,-2000.0,0.000224,2]
[330799566,1719801057544,-2000.0,0.000224,2]
[330799567,1719801057554,-2000.0,0.000224,2]
[330799568,1719801057563,-2000.0,0.000224,2]
[330799569,1719801057573,-2000.0,0.000224,2]
[330799570,1719801057582,-2000.0,0.000224,2]
[330799571,1719801057591,-2000.0,0.000224,2]
[330799572,1719801057601,-2000.0,0.000224,2]
[330799573,1719801057611,-2000.0,0.000224,2]
[330799574,1719801057620,-491.0,0.000224,5]
[330799575,1719801057630,-172.0,0.000224,5]
[330799576,1719801057639,-18635.62955299,0.000224,2]
[330799577,1719801057648,-165.46708011,0.000224,2]
[330799578,1719801057658,-154.63,0.000224,31]
[330799579,1719801057672,-154.63,0.000224,31]
[330799580,1719801057682,-154.63,0.000224,31]
[330799581,1719801057694,-154.63,0.000224,31]
[330799582,1719801057707,-984.0,0.000224,5]
[330799583,1719801057716,-203.183255,0.000224,2]
[330799584,1719801057726,-1534.23957908,0.000224,2]
[330799585,1719801057737,-161.02444257,0.000224,2]
[330799586,1719801057747,-157.09904992,0.000224,2]
[330799587,1719801057759,-150.0,0.000224,3]
[330799588,1719801057768,-21217.53801094,0.000224,2]
[330799589,1719801057778,-607.03042135,0.000224,2]
[330799590,1719801057787,-317.66316049,0.000224,2]
[330799591,1719801057798,-217.65245577,0.000224,2]
[330799592,1719801057808,-153.4125173,0.00022411,2]
[330799593,1719801057817,-239.69,0.00022414,2]
[330799594,1719801057827,-150.0,0.00022419,2]
[330799595,1719801057836,-156.4032567,0.00022424,2]
[330799596,1719801057847,-150.45691153,0.00022425,2]
[330799597,1719801057862,-151.52380884,0.00022433,2]
[330799598,1719801057873,-153.4125173,0.0002244,2]
[330799599,1719801057883,-202.43,0.0002245,30]
[330799600,1719801057893,-150.0,0.00022455,2]
[330799601,1719801057902,-150.5,0.0002246,30]
[330799602,1719801057914,-1500.0,0.0002246,2]
[330799603,1719801057923,-152.75625898,0.00022463,2]
[330799604,1719801057933,-400.0,0.0002247,2]
[330799605,1719801057943,-400.0,0.0002247,2]
[330799606,1719801057952,-383.37028258,0.00022478,2]
[330799607,1719801057962,-500.0,0.00022484,4]
[330799608,1719801057971,-604.2745497,0.00022485,2]
[330799609,1719801057980,-604.2745497,0.00022485,2]
[330799610,1719801057989,-604.2745497,0.00022485,2]
[330799611,1719801057999,-604.2745497,0.00022485,2]
[330799612,1719801058008,-604.2745497,0.00022485,2]
[330799613,1719801058018,-1302.4688413,0.00022485,2]
[330799614,1719801058027,-1302.4688413,0.00022485,2]
[330799615,1719801058036,-1302.4688413,0.00022485,2]
[330799616,1719801058045,-1302.4688413,0.00022485,2]
[330799617,1719801058055,-1302.4688413,0.00022485,2]
[330799618,1719801058065,-16962.2857217,0.00022485,2]
[330799619,1719801058074,-12791.8426596,0.00022485,2]
[330799620,1719801058084,-8621.3995976,0.00022485,2]
[330799621,1719801058093,-4450.9565356,0.00022485,2]
[330799622,1719801058104,-280.5134735,0.00022485,2]
[330799623,1719801058114,-1500.0,0.00022486,2]
[330799624,1719801058123,-230.0,0.0002249,2]
[330799625,1719801058132,-755.71,0.00022492,4]
[330799626,1719801058141,-640.2,0.00022492,4]
[330799627,1719801058150,-500.0,0.00022492,4]
[330799628,1719801058160,-500.0,0.00022492,4]
[330799629,1719801058170,-640.39976091,0.00022492,4]
[330799630,1719801058179,-2819.67,0.00022492,4]
[330799631,1719801058188,-500.0,0.00022492,4]
[330799632,1719801058197,-500.0,0.00022492,4]
[330799633,1719801058206,-280.66141286,0.00022492,4]
[330799634,1719801058216,-500.0,0.00022492,4]
[330799635,1719801058225,-500.0,0.00022492,4]
[330799636,1719801058234,-281.11706854,0.00022492,4]
[330799637,1719801058243,-194.38808549,0.00022492,4]
[330799638,1719801058253,-500.0,0.00022492,4]
[330799639,1719801058262,-576.78132609,0.00022492,4]
[330799640,1719801058271,-500.0,0.00022492,4]
[330799641,1719801058281,-500.0,0.00022492,4]
[330799642,1719801058291,-500.0,0.00022492,4]
[330799643,1719801058300,-114739.0,0.00022493,2]
[330799644,1719801058309,-209.73159914,0.00022496,2]
[330799645,1719801058318,-1052.79794458,0.00022496,2]
[330799646,1719801058327,-1000.0,0.00022497,2]
[330799647,1719801058338,-1000.0,0.00022497,2]
[330799648,1719801058348,-405.55939366,0.00022497,2]
[330799649,1719801058358,-519.91600909,0.00022498,4]
[330799650,1719801058366,-327.2464871,0.00022498,4]
[330799651,1719801058376,-607.27,0.00022499,4]
[330799652,1719801058385,-607.27,0.00022499,4]
[330799653,1719801058394,-607.27,0.00022499,4]
[330799654,1719801058403,-607.27,0.00022499,4]
[330799655,1719801058412,-607.27,0.00022499,4]
[330799656,1719801058421,-607.27,0.00022499,4]
[330799657,1719801058431,-607.27,0.00022499,4]
[330799658,1719801058443,-607.27,0.00022499,4]
[330799659,1719801058452,-607.27,0.00022499,4]
[330799660,1719801058461,-607.27,0.00022499,4]
[330799661,1719801058470,-607.27,0.00022499,4]
[330799662,1719801058479,-607.27,0.00022499,4]
[330799663,1719801058488,-607.27,0.00022499,4]
[330799664,1719801058497,-607.27,0.00022499,4]
[330799665,1719801058507,-607.27,0.00022499,4]
[330799666,1719801058516,-607.27,0.00022499,4]
[330799667,1719801058526,-607.27,0.00022499,4]
[330799668,1719801058535,-607.27,0.00022499,4]
[330799669,1719801058543,-607.27,0.00022499,4]
[330799670,1719801058553,-607.27,0.00022499,4]
[330799671,1719801058562,-607.27,0.00022499,4]
[330799672,1719801058572,-607.27,0.00022499,4]
[330799673,1719801058582,-607.4,0.00022499,4]
[330799674,1719801058591,-500.0,0.00022499,4]
[330799675,1719801058601,-500.0,0.00022499,4]
[330799676,1719801058610,-500.0,0.00022499,4]
[330799677,1719801058619,-500.0,0.00022499,4]
[330799678,1719801058628,-500.0,0.00022499,4]
[330799679,1719801058637,-500.0,0.00022499,4]
[330799680,1719801058647,-207.24436443,0.00022499,4]
[330799681,1719801058656,-755.71,0.00022499,4]
[330799682,1719801058669,-755.71,0.00022499,4]
[330799683,1719801058679,-755.71,0.00022499,4]
[330799684,1719801058688,-755.71,0.00022499,4]
[330799685,1719801058698,-755.71,0.00022499,4]
[330799686,1719801058707,-755.71,0.00022499,4]
[330799687,1719801058716,-755.71,0.00022499,4]
[330799688,1719801058726,-755.71,0.00022499,4]
[330799689,1719801058736,-755.71,0.00022499,4]
[330799690,1719801058747,-755.71,0.00022499,4]
[330799691,1719801058757,-755.71,0.00022499,4]
[330799692,1719801058767,-755.71,0.00022499,4]
[330799693,1719801058777,-755.71,0.00022499,4]
[330799694,1719801058787,-755.85130902,0.00022499,4]
[330799695,1719801058796,-640.2,0.00022499,4]
[330799696,1719801058805,-640.2,0.00022499,4]
[330799697,1719801058815,-640.2,0.00022499,4]
[330799698,1719801058824,-640.2,0.00022499,4]
[330799699,1719801058834,-640.2,0.00022499,4]
[330799700,1719801058843,-500.0,0.00022499,4]
[330799701,1719801058855,-640.2,0.00022499,4]
[330799702,1719801058864,-500.0,0.00022499,4]
[330799703,1719801058874,-640.27756448,0.00022499,4]
[330799704,1719801058883,-500.0,0.00022499,4]
[330799705,1719801058892,-500.0,0.00022499,4]
[330799706,1719801058902,-500.0,0.00022499,4]
[330799707,1719801058911,-214.40626699,0.00022499,4]
[330799708,1719801058920,-2819.67,0.00022499,4]
[330799709,1719801058929,-2819.67,0.00022499,4]
[330799710,1719801058938,-2819.67,0.00022499,4]
[330799711,1719801058948,-2819.67,0.00022499,4]
[330799712,1719801058957,-2819.67,0.00022499,4]
[330799713,1719801058967,-2819.67,0.00022499,4]
[330799714,1719801058977,-2819.82082468,0.00022499,4]
[330799715,1719801058987,-500.0,0.00022499,4]
[330799716,1719801058996,-500.0,0.00022499,4]
[330799717,1719801059006,-500.0,0.00022499,4]
[330799718,1719801059015,-500.0,0.00022499,4]
[330799719,1719801059024,-500.0,0.00022499,4]
[330799720,1719801059034,-341.6997,0.00022499,4]
[330799721,1719801059044,-500.0,0.00022499,4]
[330799722,1719801059053,-500.0,0.00022499,4]
[330799723,1719801059062,-500.0,0.00022499,4]
[330799724,1719801059071,-500.0,0.00022499,4]
[330799725,1719801059080,-500.0,0.00022499,4]
[330799726,1719801059090,-500.0,0.00022499,4]
[330799727,1719801059099,-500.0,0.00022499,4]
[330799728,1719801059109,-500.0,0.00022499,4]
[330799729,1719801059118,-500.0,0.00022499,4]
[330799730,1719801059127,-500.0,0.00022499,4]
[330799731,1719801059136,-500.0,0.00022499,4]
[330799732,1719801059145,-500.0,0.00022499,4]
[330799733,1719801059154,-500.0,0.00022499,4]
[330799734,1719801059163,-297.02119742,0.00022499,4]
[330799735,1719801059173,-500.0,0.00022499,4]
[330799736,1719801059182,-405.69873596,0.00022499,4]
[330799737,1719801059192,-5667.93096508,0.000225,5]
[330799738,1719801059201,-3028849.98399039,0.000225,120]
[330799739,1719801059418,-175369.30264364,0.000225,120]
[330799740,1719801059591,-2598.52490542,0.000225,120]
[330799741,1719801059604,-673.41285974,0.000225,120]
[330799742,1719801059616,-3607.72931005,0.000225,120]
[330799743,1719801059628,-468.67992952,0.000225,120]
[330799744,1719801059639,-1058.52056441,0.000225,120]
[330799745,1719801059696,-423.60779968,0.00018,2]
[330799746,1719801059706,-136.97674041,0.00019139,2]
[330799747,1719801059718,-500.0,0.00019139,2]
[330799748,1719801059730,-1026.02325959,0.00019139,2]
[330799749,1719801059740,-150.0,0.00020115,2]
[330799750,1719801059751,-284.30314017,0.00022492,4]
[330799751,1719801059764,-215.69685983,0.00022492,4]
[330799752,1719801059773,-4434.30314017,0.000225,120]
[330799753,1719801059784,-6834.41529601,0.000225,120]
[330799754,1719801059796,-577.29297945,0.000225,120]
[330799755,1719801060058,-423.60779968,0.00018,2]
[330799756,1719801060068,-423.60779968,0.00018,2]
[330799757,1719801060078,-239.77985197,0.00018,2]
[330799758,1719801060091,-183.82794771,0.00018,2]
[330799759,1719801060102,-116.27205229,0.00018,2]
[330799760,1719801060114,-301.132,0.00018,2]
[330799761,1719801060125,-6.20374739,0.00018,2]
[330799762,1719801060134,-268.06025261,0.00018,2]
[330799763,1719801060145,-155.54754707,0.00018,2]
[330799764,1719801060155,-154.31745293,0.00018,2]
[330799765,1719801060167,-269.29034675,0.00018,2]
[330799766,1719801060176,-423.60779968,0.00018,2]
[330799767,1719801060186,-423.60779968,0.00018,2]
[330799768,1719801060196,-423.60779968,0.00018,2]
[330799769,1719801060206,-423.60779968,0.00018,2]
[330799770,1719801060216,-1494.77524589,0.00018717,2]
[330799771,1719801060226,-150.0,0.00019348,2]
[330799772,1719801060236,-150.0,0.00019379,2]
[330799773,1719801060247,-150.0,0.00019752,2]
[330799774,1719801060257,-150.0,0.00019929,2]
[330799775,1719801060267,-150.0,0.0001993,2]
[330799776,1719801060278,-150.0,0.0001996,2]
[330799777,1719801060289,-150.0,0.00020023,2]
[330799778,1719801060299,-356.0,0.000201,2]
[330799779,1719801060309,-150.0,0.00020196,2]
[330799780,1719801060319,-150.0,0.00020391,2]
[330799781,1719801060328,-150.0,0.00020667,2]
[330799782,1719801060338,-150.0,0.00021041,2]
[330799783,1719801060348,-150.0,0.00021061,2]
[330799784,1719801060362,-150.0,0.0002114,2]
[330799785,1719801060371,-150.0,0.00021335,2]
[330799786,1719801060381,-150.0,0.00021342,2]
[330799787,1719801060390,-150.0,0.00021357,2]
[330799788,1719801060399,-150.0,0.00021551,2]
[330799789,1719801060408,-150.0,0.00021644,2]
[330799790,1719801060418,-150.0,0.00021752,2]
[330799791,1719801060428,-150.0,0.00021785,2]
[330799792,1719801060437,-150.0,0.0002185,2]
[330799793,1719801060447,-150.0,0.0002189,2]
[330799794,1719801060456,-327.16438361,0.00021906,2]
[330799795,1719801060466,-299.84708404,0.00021917,4]
[330799796,1719801060476,-150.0,0.00021989,2]
[330799797,1719801060486,-151.36189748,0.000224,2]
[330799798,1719801060495,-500.0,0.00022492,4]
[330799799,1719801060505,-500.0,0.00022492,4]
[330799800,1719801060515,-51030.43128517,0.000225,120]
[330799801,1719801060527,-95575.09722392,0.000225,120]
[330799802,1719801060538,-4006.57214542,0.000225,120]
[330799803,1719801060550,-7916.8287323,0.000225,120]
[330799804,1719801060561,-12075.37197173,0.000225,120]
[330799805,1719801060572,-8624.41804656,0.000225,120]
[330799806,1719801060583,-1852.34717072,0.000225,120]
[330799807,1719801060598,-547.59336367,0.000225,120]
[330799808,1719801060612,-6954.03353777,0.000225,120]
[330799809,1719801060624,-5925.51205195,0.000225,120]
[330799810,1719801060635,-1232.33712628,0.000225,120]
[330799811,1719801060783,-423.60779968,0.00018,2]
[330799812,1719801060793,-423.60779968,0.00018,2]
[330799813,1719801060803,-150.0,0.00019143,2]
[330799814,1719801060813,-150.0,0.00019253,2]
[330799815,1719801060822,-150.0,0.00019254,2]
[330799816,1719801060831,-150.0,0.00019389,2]
[330799817,1719801060841,-150.0,0.00019522,2]
[330799818,1719801060851,-150.0,0.0001993,2]
[330799819,1719801060864,-150.0,0.00020766,2]
[330799820,1719801060874,-150.0,0.00020975,2]
[330799821,1719801060883,-150.0,0.00021124,2]
[330799822,1719801060892,-150.0,0.0002128,2]
[330799823,1719801060905,-150.0,0.00021494,2]
[330799824,1719801060915,-150.0,0.0002153,2]
[330799825,1719801060924,-1330.180276,0.00021817,2]
[330799826,1719801060933,-514.20614856,0.00022498,4]
[330799827,1719801060943,-1095.05579771,0.000225,120]
[330799828,1719801060955,-1881.315,0.000225,120]
[330799829,1719801060966,-1784.67781684,0.000225,120]
[330799830,1719801060977,-411.70039255,0.000225,120]
[330799831,1719801060989,-4349.01500908,0.000225,120]
[330799832,1719801061106,-290.35672835,0.00016537,2]
[330799833,1719801061151,-907.64327165,0.00016537,2]
[330799834,1719801061167,-423.60779968,0.00018,2]
[330799835,1719801061180,-423.60779968,0.00018,2]
[330799836,1719801061192,-423.60779968,0.00018,2]
[330799837,1719801061206,-423.60779968,0.00018,2]
[330799838,1719801061220,-423.60779968,0.00018,2]
[330799839,1719801061233,-423.60779968,0.00018,2]
[330799840,1719801061247,-128.50993027,0.00018,2]
[330799841,1719801061295,-295.09786941,0.00018,2]
[330799842,1719801061308,-224.84305092,0.00018,2]
[330799843,1719801061326,-198.76474876,0.00018,2]
[330799844,1719801061339,-423.60779968,0.00018,2]
[330799845,1719801061354,-229.80854925,0.00018,2]
[330799846,1719801061371,-193.79925043,0.00018,2]
[330799847,1719801061384,-248.2026431,0.00018,2]
[330799848,1719801061398,-175.40515658,0.00018,2]
[330799849,1719801061410,-874.8416766,0.00019537,2]
[330799850,1719801061426,-309.4093234,0.00019537,2]
[330799851,1719801061444,-565.0,0.00021242,2]
[330799852,1719801061458,-214.38566774,0.00021743,2]
[330799853,1719801061475,-2482.06838656,0.00021893,2]
[330799854,1719801061494,-310.0765343,0.00021893,2]
[330799855,1719801061509,-406.74189515,0.00021893,2]
[330799856,1719801061522,-3078.53273256,0.00021893,2]
[330799857,1719801061533,-1330.180276,0.00022109,2]
[330799858,1719801061546,-30340.97601215,0.000225,120]
[330799859,1719801061562,-1032.6279939,0.000225,120]
[330799860,1719801061579,-1872.82806,0.000225,120]
[330799862,1719801274945,1902.84188033,0.00011199,2]
[330799863,1719801328225,1232.39146387,0.00011199,2]
[330799864,1719801358318,1071.22337385,0.00011199,2]
[330799865,1719801426384,155.0,0.00011199,2]
[330799866,1719801436787,474.52583922,0.00011199,2]
[330799938,1719801498677,264.96880336,0.00011199,2]
[330799939,1719801498766,4947.11775505,0.00011199,2]
[330799940,1719801504370,328.74786197,0.00011199,2]
[330799941,1719801526948,155.0,0.00011199,2]
[330799942,1719801560074,1901.95663199,0.00011199,2]
[330799943,1719801580236,3153.1140478,0.00011199,2]
[330799944,1719801583104,182.56576633,0.00011199,2]
[330799947,1719801728400,552.62925615,0.00011199,2]
[330799951,1719801803432,157.98000012,0.00011199,2]
[330799953,1719801821407,155.0,0.00011199,2]
[330799954,1719801876408,552.40063247,0.00011199,2]
[330799955,1719801927883,329.05874363,0.00011199,2]
[330799956,1719801959960,173.59426351,0.00011199,2]
[330799962,1719802154135,-357.83,0.0001138,2]
[330799972,1719802232045,-1557.8938844,0.000118,2]
[330799973,1719802232055,-196.74437875,0.00012202,2]
[330799974,1719802232068,-546.45254083,0.00012302,2]
[330799975,1719802232078,-151.94375224,0.000126,2]
[330799978,1719802232088,-5062.11021014,0.00012651,2]
[330799980,1719802232098,-179.23,0.00012651,2]
[330799982,1719802232107,-164.10776203,0.00013128,2]
[330799984,1719802232117,-177.29,0.00013155,2]
[330799986,1719802232126,-468.51,0.00013258,2]
[330799988,1719802232136,-300.0,0.00013292,2]
[330799990,1719802232145,-150.0,0.00013293,2]
[330799992,1719802232155,-499.99,0.00013293,2]
[330799994,1719802232164,-1799.12922959,0.00013293,2]
[330799995,1719802232175,-854.8607206,0.00013293,2]
[330799996,1719802232187,-537.60474763,0.00013293,2]
[330799997,1719802232201,-7499.01025656,0.00013293,2]
[330799998,1719802232215,-5965.02504562,0.00013293,2]
[330799999,1719802232225,-468.51,0.00013294,2]
[330800000,1719802232235,-1000.0,0.00013299,2]
[330800001,1719802232246,-468.51,0.0001333,2]
[330800002,1719802232255,-206.2555821,0.0001334,2]
[330800003,1719802232267,-43.7444179,0.0001334,2]
[330800004,1719802232283,-468.51,0.00013367,2]
[330800005,1719802232292,-31.57577474,0.00013403,2]
[330800006,1719802232466,-436.93422526,0.00013403,2]
[330800007,1719802232476,-468.51,0.00013439,2]
[330800008,1719802232486,-159.79,0.00013462,2]
[330800009,1719802232495,-398.75,0.00013462,2]
[330800010,1719802232504,-468.51,0.00013476,2]
[330800011,1719802232514,-468.51,0.00013512,2]
[330800013,1719802232527,-213.7679808,0.00013549,2]
[330800015,1719802232540,-254.7420192,0.00013549,2]
[330800017,1719802232549,-468.51,0.00013585,2]
[330800019,1719802232559,-468.51,0.00013621,2]
[330800021,1719802232569,-357.83,0.00013644,2]
[330800023,1719802232579,-468.51,0.00013658,2]